[Event "ESTCC 65 2019"]
[Site "Mali Losinj"]
[Date "2019.09.25"]
[Round "8.1"]
[White "Quinn, John M"]
[Black "Balashov, Yuri S"]
[Result "1-0"]
[ECO "D63"]
[WhiteElo "2105"]
[BlackElo "2466"]
[Annotator "ChessBase"]
[PlyCount "87"]
[EventDate "2019.09.18"]
[EventType "team-tourn"]
[EventCountry "CRO"]
[SourceTitle "playchess.com"]
[Source "ChessBase"]
[SourceQuality "1"]
[WhiteTeam "England"]
[BlackTeam "Russia"]
[WhiteTeamCountry "ENG"]
[BlackTeamCountry "RUS"]
[TimeControl "40/5400+30:1800+30"]

1. d4 {[%emt 0:00:30]} Nf6 {[%emt 0:00:30]} 2. c4 {[%emt 0:00:00]} e6 {[%emt 0:00:00]} 3. Nf3 {[%emt 0:00:00]} d5 {[%emt 0:00:00]} 4. Nc3 {[%emt 0:00:30]} Nbd7 {[%emt 0:01:30]} 5. Bg5 {[%emt 0:00:30]} Be7 {[%emt 0:00:30]} 6. e3 {[%emt 0:00:30]} O-O {[%emt 0:00:00]} 7. Rc1 {[%emt 0:00:30]} a6 {[%emt 0:01:00]} 8. cxd5 {[%emt 0:06:30]} exd5 {[%emt 0:00:00]} 9. Bd3 {[%emt 0:04:30]} c6 {[%emt 0:01:00]} 10. O-O {[%emt 0:04:30]} Re8 {[%emt 0:00:00]} 11. a3 {[%emt 0:09:30]} Nf8 {[%emt 0:03:00]} 12. Ne5 {[%emt 0:05:30]} N6d7 {[%emt 0:05:30]} 13. Bf4 {[%emt 0:02:30]} Bf6 {[%emt 0:04:30]} 14. Nxd7 {[%emt 0:09:30]} Bxd7 {[%emt 0:06:30]} 15. Na4 {[%emt 0:02:30]} Ne6 {[%emt 0:00:30]} 16. Bg3 {[%emt 0:00:30]} g6 {[%emt 0:01:30]} 17. b4 {[%emt 0:02:30]} b5 {[%emt 0:01:30]} 18. Nc5 {[%emt 0:03:30]} Nxc5 {[%emt 0:00:30]} 19. bxc5 {[%emt 0:01:30]} a5 {[%emt 0:01:30]} 20. Re1 {[%emt 0:03:30]} Be6 {[%emt 0:03:30]} 21. Bd6 {[%emt 0:03:30]} Bg7 {[%emt 0:07:30]} 22. Rc2 {[%emt 0:02:30]} Qd7 {[%emt 0:01:30]} 23. f3 {[%emt 0:03:30]} Bf5 {[%emt 0:05:30]} 24. g4 {[%emt 0:01:30]} Bxd3 {[%emt 0:00:30]} 25. Qxd3 {[%emt 0:00:30]} a4 {[%emt 0:03:30]} 26. Rg2 {[%emt 0:03:30]} Re6 {[%emt 0:02:30]} 27. e4 {[%emt 0:07:30]} dxe4 {[%emt 0:00:30]} 28. fxe4 {[%emt 0:00:30]} Rxd6 {[%emt 0:00:30]} 29. cxd6 {[%emt 0:00:30]} Qxd6 {[%emt 0:00:30]} 30. e5 {[%emt 0:08:53]} Qd5 {[%emt 0:00:00]} 31. Qe4 {[%emt 0:02:43]} Rd8 {[%emt 0:00:00]} 32. Qxd5 {[%emt 0:00:46]} Rxd5 {[%emt 0:00:30]} 33. Re4 {[%emt 0:02:00]} Bf8 {[%emt 0:08:30]} 34. Ra2 {[%emt 0:01:34]} c5 {[%emt 0:00:30]} 35. dxc5 {[%emt 0:00:24]} Bxc5+ {[%emt 0:00:30]} 36. Kf1 {[%emt 0:01:37]} Kf8 {[%emt 0:00:30]} 37. e6 {[%emt 0:05:15]} f6 {[%emt 0:00:30]} 38. h4 {[%emt 0:00:56]} Ke7 {[%emt 0:00:30]} 39. h5 {[%emt 0:00:34]} gxh5 {[%emt 0:01:30]} 40. gxh5 {[%emt 0:00:47]} Rf5+ {[%emt 0:02:30]} 41. Kg2 {[%emt 0:30:35]} Rxh5 {[%emt 0:01:30]} 42. Rd2 {[%emt 0:00:00]} Bd6 {[%emt 0:00:30]} 43. Rxd6 {[%emt 0:00:00]} Rg5+ {[%emt 0:00:00]} 44. Kf3 {[%emt 0:00:00]} 1-0

[Event "ESTCC 65 2019"]
[Site "Mali Losinj"]
[Date "2019.09.25"]
[Round "8.3"]
[White "Reuben, Stewart"]
[Black "Zhelnin, Vladimir V"]
[Result "0-1"]
[ECO "E68"]
[WhiteElo "1983"]
[BlackElo "2406"]
[Annotator "NA"]
[PlyCount "80"]
[EventDate "2019.09.18"]
[EventType "team-tourn"]
[EventCountry "CRO"]
[SourceTitle "playchess.com"]
[Source "ChessBase"]
[SourceQuality "1"]
[WhiteTeam "England"]
[BlackTeam "Russia"]
[WhiteTeamCountry "ENG"]
[BlackTeamCountry "RUS"]
[TimeControl "40/5400+30:1800+30"]

1. d4 {[%emt 0:00:30]} g6 {[%emt 0:01:30]} 2. c4 {[%emt 0:00:00]} Bg7 {[%emt 0:00:00]} 3. Nc3 {[%emt 0:00:00]} d6 {[%emt 0:00:00]} 4. g3 {[%emt 0:00:30]} Nf6 {[%emt 0:03:30]} 5. Bg2 {[%emt 0:03:30]} O-O {[%emt 0:00:30]} 6. e4 {[%emt 0:00:30]} Nbd7 {[%emt 0:02:30]} 7. Nge2 {[%emt 0:01:30]} e5 {[%emt 0:02:30]} 8. O-O {[%emt 0:01:30]} c6 {[%emt 0:03:30]} 9. b3 {[%emt 0:03:30]} exd4 {[%emt 0:03:30]} 10. Nxd4 {[%emt 0:00:30]} Re8 {[%emt 0:00:00]} 11. Be3 {[%emt 0:01:30]} Nc5 {[%emt 0:02:00]} 12. f3 {[%emt 0:03:30]} a5 {[%emt 0:14:30]} 13. Qc2 {[%emt 0:02:30]} Nfd7 {[%emt 0:05:30]} 14. Rad1 {[%emt 0:02:30]} Qe7 {[%emt 0:08:30]} 15. Bf2 {[%emt 0:05:30]} Ne5 {[%emt 0:00:30]} 16. h3 {[%emt 0:07:30]} a4 {[%emt 0:01:30]} 17. f4 {[%emt 0:02:30]} axb3 {[%emt 0:00:30]} 18. axb3 {[%emt 0:00:30]} Ned7 {[%emt 0:00:00]} 19. Ra1 {[%emt 0:05:30]} Rxa1 {[%emt 0:02:00]} 20. Rxa1 {[%emt 0:00:30]} Nf6 {[%emt 0:05:30]} 21. Re1 {[%emt 0:02:30]} Qc7 {[%emt 0:04:30]} 22. b4 {[%emt 0:20:30]} Ne6 {[%emt 0:06:30]} 23. Nb3 {[%emt 0:04:30]} h5 {[%emt 0:06:30]} 24. f5 {[%emt 0:08:30]} Nf8 {[%emt 0:00:30]} 25. Bf3 {[%emt 0:06:19]} N8d7 {[%emt 0:00:30]} 26. Be2 {[%emt 0:01:08]} Ne5 {[%emt 0:03:30]} 27. Bd4 {[%emt 0:00:41]} gxf5 {[%emt 0:01:30]} 28. Kg2 {[%emt 0:04:36]} fxe4 {[%emt 0:04:25]} 29. Nxe4 {[%emt 0:00:25]} Nxe4 {[%emt 0:00:44]} 30. Qxe4 {[%emt 0:00:12]} Qd7 {[%emt 0:01:12]} 31. Qh4 {[%emt 0:02:33]} c5 {[%emt 0:03:02]} 32. Bc3 {[%emt 0:05:30]} Ng6 {[%emt 0:01:45]} 33. Qxh5 {[%emt 0:00:21]} Bxc3 {[%emt 0:01:41]} 34. Rd1 {[%emt 0:03:49]} cxb4 {[%emt 0:02:00]} 35. Bd3 {[%emt 0:00:33]} Re5 {[%emt 0:01:15]} 36. Qh6 {[%emt 0:00:19]} Qe6 {[%emt 0:00:37]} 37. Rf1 {[%emt 0:00:16]} Bd7 {[%emt 0:00:36]} 38. g4 {[%emt 0:00:08]} Bc6+ {[%emt 0:00:47]} 39. Kg1 {[%emt 0:00:09]} Re1 {[%emt 0:01:06]} 40. Nd2 {[%emt 0:01:20]} Bd4+ {[%emt 0:01:14]} 0-1

[Event "ESTCC 65 2019"]
[Site "Mali Losinj"]
[Date "2019.09.25"]
[Round "8.4"]
[White "Pushkov, Nikolai"]
[Black "Ewart, Brian R"]
[Result "1-0"]
[ECO "B31"]
[WhiteElo "2261"]
[BlackElo "1882"]
[Annotator "NA"]
[PlyCount "73"]
[EventDate "2019.09.18"]
[EventType "team-tourn"]
[EventCountry "CRO"]
[SourceTitle "playchess.com"]
[Source "ChessBase"]
[SourceQuality "1"]
[WhiteTeam "Russia"]
[BlackTeam "England"]
[WhiteTeamCountry "RUS"]
[BlackTeamCountry "ENG"]
[TimeControl "40/5400+30:1800+30"]

1. d4 {[%emt 0:00:30]} Nf6 {[%emt 0:09:30]} 2. Nf3 {[%emt 0:00:00]} g6 {[%emt 0:00:30]} 3. c4 {[%emt 0:00:00]} Bg7 {[%emt 0:00:30]} 4. Nc3 {[%emt 0:00:30]} O-O {[%emt 0:00:30]} 5. e4 {[%emt 0:00:00]} d6 {[%emt 0:00:30]} 6. Be2 {[%emt 0:00:00]} e5 {[%emt 0:00:30]} 7. Be3 {[%emt 0:00:30]} Nc6 {[%emt 0:02:30]} 8. d5 {[%emt 0:00:00]} Ne7 {[%emt 0:00:30]} 9. Nd2 {[%emt 0:00:00]} c6 {[%emt 0:00:30]} 10. O-O {[%emt 0:01:30]} cxd5 {[%emt 0:04:30]} 11. cxd5 {[%emt 0:00:30]} a6 {[%emt 0:00:30]} 12. b4 {[%emt 0:02:30]} Nd7 {[%emt 0:06:30]} 13. Nc4 {[%emt 0:02:30]} Qc7 {[%emt 0:04:30]} 14. Rc1 {[%emt 0:00:30]} b5 {[%emt 0:05:30]} 15. Na5 {[%emt 0:00:30]} Qb8 {[%emt 0:01:30]} 16. a4 {[%emt 0:04:30]} bxa4 {[%emt 0:02:30]} 17. Nc6 {[%emt 0:03:30]} Nxc6 {[%emt 0:02:30]} 18. dxc6 {[%emt 0:02:30]} Nf6 {[%emt 0:01:30]} 19. Qxa4 {[%emt 0:00:30]} Be6 {[%emt 0:10:30]} 20. Rfd1 {[%emt 0:10:30]} Qc7 {[%emt 0:05:30]} 21. Nd5 {[%emt 0:02:30]} Bxd5 {[%emt 0:06:30]} 22. exd5 {[%emt 0:00:00]} Rfb8 {[%emt 0:05:30]} 23. h3 {[%emt 0:05:00]} h5 {[%emt 0:00:30]} 24. Bxa6 {[%emt 0:01:30]} Kh7 {[%emt 0:01:30]} 25. b5 {[%emt 0:00:30]} Bh6 {[%emt 0:00:30]} 26. Bxh6 {[%emt 0:04:30]} Kxh6 {[%emt 0:00:30]} 27. Qa3 {[%emt 0:01:30]} Ne8 {[%emt 0:01:30]} 28. Qe3+ {[%emt 0:01:30]} Kh7 {[%emt 0:00:30]} 29. Ra1 {[%emt 0:05:30]} Rb6 {[%emt 0:14:26]} 30. f4 {[%emt 0:04:30]} f6 {[%emt 0:00:33]} 31. fxe5 {[%emt 0:01:30]} fxe5 {[%emt 0:00:02]} 32. Rf1 {[%emt 0:01:30]} Rab8 {[%emt 0:01:30]} 33. Qf2 {[%emt 0:04:30]} Qg7 {[%emt 0:02:47]} 34. Qf8 {[%emt 0:02:30]} Qxf8 {[%emt 0:02:03]} 35. Rxf8 {[%emt 0:00:00]} Kh6 {[%emt 0:04:50]} 36. Rf7 {[%emt 0:02:00]} Rxa6 {[%emt 0:01:17]} 37. bxa6 {[%emt 0:00:00]} 1-0

[Event "ESTCC 65 2019"]
[Site "Mali Losinj"]
[Date "2019.09.25"]
[Round "8.5"]
[White "Beilfuss, Wilfried"]
[Black "Rantanen, Yrjo A."]
[Result "0-1"]
[ECO "D34"]
[WhiteElo "2192"]
[BlackElo "2309"]
[Annotator "NA"]
[PlyCount "84"]
[EventDate "2019.09.18"]
[EventType "team-tourn"]
[EventCountry "CRO"]
[SourceTitle "playchess.com"]
[Source "ChessBase"]
[SourceQuality "1"]
[WhiteTeam "Germany"]
[BlackTeam "Finland"]
[WhiteTeamCountry "GER"]
[BlackTeamCountry "FIN"]
[TimeControl "40/5400+30:1800+30"]

1. Nf3 {[%emt 0:00:30]} c5 {[%emt 0:02:30]} 2. c4 {[%emt 0:00:30]} Nf6 {[%emt 0:02:30]} 3. Nc3 {[%emt 0:00:30]} e6 {[%emt 0:00:30]} 4. g3 {[%emt 0:00:30]} d5 {[%emt 0:00:30]} 5. cxd5 {[%emt 0:00:30]} exd5 {[%emt 0:00:30]} 6. d4 {[%emt 0:00:30]} Nc6 {[%emt 0:00:30]} 7. Bg2 {[%emt 0:00:00]} Be7 {[%emt 0:00:30]} 8. O-O {[%emt 0:00:00]} O-O {[%emt 0:02:30]} 9. b3 {[%emt 0:00:30]} Ne4 {[%emt 0:00:30]} 10. Bb2 {[%emt 0:00:30]} Bf6 {[%emt 0:01:30]} 11. Na4 {[%emt 0:01:30]} cxd4 {[%emt 0:04:30]} 12. Nxd4 {[%emt 0:02:30]} Bxd4 {[%emt 0:01:30]} 13. Bxd4 {[%emt 0:00:00]} Bf5 {[%emt 0:00:30]} 14. Rc1 {[%emt 0:02:00]} Re8 {[%emt 0:05:30]} 15. e3 {[%emt 0:06:30]} Qe7 {[%emt 0:05:30]} 16. Nc3 {[%emt 0:11:30]} Rad8 {[%emt 0:03:30]} 17. Ne2 {[%emt 0:02:30]} Qa3 {[%emt 0:10:30]} 18. Ra1 {[%emt 0:14:30]} Ng5 {[%emt 0:17:30]} 19. h4 {[%emt 0:00:30]} Ne6 {[%emt 0:00:00]} 20. Qd2 {[%emt 0:03:30]} Qa6 {[%emt 0:05:00]} 21. Bf3 {[%emt 0:06:30]} Be4 {[%emt 0:06:30]} 22. Kg2 {[%emt 0:01:30]} Nexd4 {[%emt 0:10:07]} 23. Nxd4 {[%emt 0:01:30]} Nxd4 {[%emt 0:02:05]} 24. exd4 {[%emt 0:05:30]} Bxf3+ {[%emt 0:02:12]} 25. Kxf3 {[%emt 0:00:30]} Re4 {[%emt 0:00:00]} 26. Rad1 {[%emt 0:05:30]} h6 {[%emt 0:01:05]} 27. Rfe1 {[%emt 0:01:30]} Qg6 {[%emt 0:00:38]} 28. Rh1 {[%emt 0:12:30]} Rde8 {[%emt 0:01:29]} 29. Kg2 {[%emt 0:00:30]} Re2 {[%emt 0:03:59]} 30. Qf4 {[%emt 0:00:30]} Rxa2 {[%emt 0:00:54]} 31. Rhe1 {[%emt 0:01:21]} Re4 {[%emt 0:03:22]} 32. Rxe4 {[%emt 0:00:53]} Qxe4+ {[%emt 0:00:46]} 33. Qxe4 {[%emt 0:00:15]} dxe4 {[%emt 0:00:08]} 34. Re1 {[%emt 0:00:09]} f5 {[%emt 0:00:23]} 35. g4 {[%emt 0:00:47]} Rd2 {[%emt 0:00:05]} 36. gxf5 {[%emt 0:03:39]} Rxd4 {[%emt 0:00:13]} 37. Rc1 {[%emt 0:03:52]} Rb4 {[%emt 0:00:50]} 38. Rc3 {[%emt 0:02:07]} Kf7 {[%emt 0:00:23]} 39. Kg3 {[%emt 0:01:33]} Kf6 {[%emt 0:00:49]} 40. Kf4 {[%emt 0:00:16]} e3+ {[%emt 0:00:43]} 41. Kxe3 {[%emt 0:30:20]} Rxh4 {[%emt 0:30:19]} 42. Kd2 {[%emt 0:03:14]} Rb4 {[%emt 0:02:15]} 0-1

[Event "ESTCC 65 2019"]
[Site "Mali Losinj"]
[Date "2019.09.25"]
[Round "8.6"]
[White "Westerinen, Heikki M.J."]
[Black "Becker, Norbert"]
[Result "1-0"]
[ECO "B23"]
[WhiteElo "2296"]
[BlackElo "2131"]
[Annotator "NA"]
[PlyCount "59"]
[EventDate "2019.09.18"]
[EventType "team-tourn"]
[EventCountry "CRO"]
[SourceTitle "playchess.com"]
[Source "ChessBase"]
[SourceQuality "1"]
[WhiteTeam "Finland"]
[BlackTeam "Germany"]
[WhiteTeamCountry "FIN"]
[BlackTeamCountry "GER"]
[TimeControl "40/5400+30:1800+30"]

1. e4 {[%emt 0:00:30]} c5 {[%emt 0:00:30]} 2. Nc3 {[%emt 0:00:30]} g6 {[%emt 0:00:30]} 3. f4 {[%emt 0:00:30]} Bg7 {[%emt 0:00:30]} 4. Nf3 {[%emt 0:01:30]} d6 {[%emt 0:01:30]} 5. Bb5+ {[%emt 0:04:30]} Bd7 {[%emt 0:00:30]} 6. a4 {[%emt 0:03:30]} Nc6 {[%emt 0:07:30]} 7. O-O {[%emt 0:04:30]} Nf6 {[%emt 0:03:30]} 8. d3 {[%emt 0:06:30]} O-O {[%emt 0:00:30]} 9. h3 {[%emt 0:07:30]} Ne8 {[%emt 0:05:30]} 10. Bd2 {[%emt 0:07:30]} Nc7 {[%emt 0:03:30]} 11. Bc4 {[%emt 0:00:30]} Nd4 {[%emt 0:06:30]} 12. Nxd4 {[%emt 0:06:30]} Bxd4+ {[%emt 0:01:30]} 13. Kh1 {[%emt 0:04:30]} Bc6 {[%emt 0:02:30]} 14. f5 {[%emt 0:03:30]} d5 {[%emt 0:03:30]} 15. exd5 {[%emt 0:00:30]} Nxd5 {[%emt 0:00:30]} 16. Qg4 {[%emt 0:04:30]} Nf6 {[%emt 0:21:30]} 17. Qh4 {[%emt 0:07:30]} Nh5 {[%emt 0:09:30]} 18. Bh6 {[%emt 0:13:30]} Qd6 {[%emt 0:02:30]} 19. Ne2 {[%emt 0:00:30]} Bg7 {[%emt 0:05:30]} 20. Bxg7 {[%emt 0:01:30]} Kxg7 {[%emt 0:00:00]} 21. Nf4 {[%emt 0:01:31]} Nxf4 {[%emt 0:04:59]} 22. Rxf4 {[%emt 0:00:39]} Qf6 {[%emt 0:02:00]} 23. Qf2 {[%emt 0:06:37]} g5 {[%emt 0:03:08]} 24. Rg4 {[%emt 0:00:24]} Kh8 {[%emt 0:03:57]} 25. Qxc5 {[%emt 0:02:16]} Qxb2 {[%emt 0:01:46]} 26. Re1 {[%emt 0:00:54]} Qxc2 {[%emt 0:03:40]} 27. Rxe7 {[%emt 0:05:38]} Qb1+ {[%emt 0:03:47]} 28. Kh2 {[%emt 0:00:21]} f6 {[%emt 0:00:07]} 29. Rxg5 {[%emt 0:01:03]} Qf1 {[%emt 0:01:31]} 30. Rxh7+ {[%emt 0:00:51]} 1-0

[Event "ESTCC 65 2019"]
[Site "Mali Losinj"]
[Date "2019.09.25"]
[Round "8.7"]
[White "Mueller, Gerhard"]
[Black "Kivimaki, Jaakko"]
[Result "1/2-1/2"]
[ECO "C28"]
[WhiteElo "2104"]
[BlackElo "2195"]
[Annotator "NA"]
[PlyCount "66"]
[EventDate "2019.09.18"]
[EventType "team-tourn"]
[EventCountry "CRO"]
[SourceTitle "playchess.com"]
[Source "ChessBase"]
[SourceQuality "1"]
[WhiteTeam "Germany"]
[BlackTeam "Finland"]
[WhiteTeamCountry "GER"]
[BlackTeamCountry "FIN"]
[TimeControl "40/5400+30:1800+30"]

1. e4 {[%emt 0:00:30]} e5 {[%emt 0:00:30]} 2. Bc4 {[%emt 0:00:00]} Nc6 {[%emt 0:00:00]} 3. d3 {[%emt 0:00:00]} Nf6 {[%emt 0:01:00]} 4. Nc3 {[%emt 0:00:30]} Na5 {[%emt 0:01:30]} 5. Nf3 {[%emt 0:03:30]} Nxc4 {[%emt 0:02:30]} 6. dxc4 {[%emt 0:00:30]} d6 {[%emt 0:00:00]} 7. O-O {[%emt 0:01:30]} Be7 {[%emt 0:01:00]} 8. Qd3 {[%emt 0:03:30]} Bg4 {[%emt 0:03:30]} 9. h3 {[%emt 0:01:30]} Bh5 {[%emt 0:00:30]} 10. Ne2 {[%emt 0:05:30]} Qd7 {[%emt 0:04:30]} 11. Ng3 {[%emt 0:02:30]} Bg6 {[%emt 0:00:30]} 12. Be3 {[%emt 0:03:30]} h5 {[%emt 0:06:30]} 13. Nh4 {[%emt 0:04:30]} Bh7 {[%emt 0:01:30]} 14. Nhf5 {[%emt 0:02:30]} Bf8 {[%emt 0:23:30]} 15. a4 {[%emt 0:13:30]} h4 {[%emt 0:05:30]} 16. Nxh4 {[%emt 0:01:30]} Bxe4 {[%emt 0:01:30]} 17. Nxe4 {[%emt 0:00:00]} Rxh4 {[%emt 0:00:00]} 18. Ng3 {[%emt 0:03:00]} Qe6 {[%emt 0:02:00]} 19. b3 {[%emt 0:01:30]} g6 {[%emt 0:01:30]} 20. Bg5 {[%emt 0:05:30]} Rh8 {[%emt 0:06:30]} 21. Qf3 {[%emt 0:03:30]} Nh7 {[%emt 0:00:30]} 22. Qxb7 {[%emt 0:00:30]} Rc8 {[%emt 0:07:30]} 23. Be3 {[%emt 0:01:30]} f5 {[%emt 0:02:30]} 24. Bxa7 {[%emt 0:05:30]} Ng5 {[%emt 0:02:30]} 25. Qc6+ {[%emt 0:01:30]} Ke7 {[%emt 0:00:30]} 26. Qd5 {[%emt 0:00:30]} Qd7 {[%emt 0:02:30]} 27. f4 {[%emt 0:07:30]} c6 {[%emt 0:02:30]} 28. Qa5 {[%emt 0:00:30]} Ra8 {[%emt 0:01:41]} 29. fxg5 {[%emt 0:00:30]} Rxa7 {[%emt 0:00:19]} 30. Qd2 {[%emt 0:02:30]} Bg7 {[%emt 0:00:30]} 31. Rad1 {[%emt 0:00:30]} Qe6 {[%emt 0:02:56]} 32. Qf2 {[%emt 0:02:30]} Rb7 {[%emt 0:01:23]} 33. Rfe1 {[%emt 0:04:30]} Kf7 {[%emt 0:06:17]} 1/2-1/2

[Event "ESTCC 65 2019"]
[Site "Mali Losinj"]
[Date "2019.09.25"]
[Round "8.9"]
[White "Carlsten, Peter"]
[Black "Werner, Clemens"]
[Result "0-1"]
[ECO "B12"]
[WhiteElo "1986"]
[BlackElo "2286"]
[Annotator "NA"]
[PlyCount "60"]
[EventDate "2019.09.18"]
[EventType "team-tourn"]
[EventCountry "CRO"]
[SourceTitle "playchess.com"]
[Source "ChessBase"]
[SourceQuality "1"]
[WhiteTeam "Sweden"]
[BlackTeam "Germany"]
[WhiteTeamCountry "SWE"]
[BlackTeamCountry "GER"]
[TimeControl "40/5400+30:1800+30"]

1. e4 {[%emt 0:00:30]} c6 {[%emt 0:00:30]} 2. d4 {[%emt 0:00:30]} d5 {[%emt 0:00:00]} 3. f3 {[%emt 0:00:00]} e6 {[%emt 0:00:00]} 4. Nc3 {[%emt 0:00:00]} Bb4 {[%emt 0:00:30]} 5. Bf4 {[%emt 0:00:00]} Nf6 {[%emt 0:00:30]} 6. e5 {[%emt 0:01:00]} Nfd7 {[%emt 0:00:30]} 7. Nge2 {[%emt 0:04:30]} O-O {[%emt 0:02:30]} 8. a3 {[%emt 0:01:30]} Be7 {[%emt 0:00:30]} 9. Na2 {[%emt 0:14:30]} f6 {[%emt 0:01:30]} 10. exf6 {[%emt 0:00:30]} Bxf6 {[%emt 0:17:30]} 11. Qd2 {[%emt 0:01:30]} Re8 {[%emt 0:09:30]} 12. O-O-O {[%emt 0:02:30]} c5 {[%emt 0:02:30]} 13. c3 {[%emt 0:01:30]} Nc6 {[%emt 0:00:30]} 14. Kb1 {[%emt 0:03:30]} Qb6 {[%emt 0:10:30]} 15. Be3 {[%emt 0:02:30]} c4 {[%emt 0:01:30]} 16. g4 {[%emt 0:01:30]} Na5 {[%emt 0:01:30]} 17. Nac1 {[%emt 0:00:30]} Be7 {[%emt 0:01:30]} 18. Ka1 {[%emt 0:04:30]} Qb5 {[%emt 0:04:30]} 19. Qc2 {[%emt 0:11:30]} Nb6 {[%emt 0:00:30]} 20. h4 {[%emt 0:01:30]} Bd7 {[%emt 0:04:30]} 21. Rd2 {[%emt 0:02:30]} Nb3+ {[%emt 0:01:30]} 22. Nxb3 {[%emt 0:00:30]} cxb3 {[%emt 0:00:00]} 23. Qc1 {[%emt 0:00:30]} Rac8 {[%emt 0:03:00]} 24. Nf4 {[%emt 0:10:30]} Qa5 {[%emt 0:03:30]} 25. g5 {[%emt 0:08:30]} Bxa3 {[%emt 0:04:30]} 26. bxa3 {[%emt 0:00:30]} Rxc3 {[%emt 0:00:30]} 27. Qe1 {[%emt 0:01:30]} Qxa3+ {[%emt 0:10:01]} 28. Kb1 {[%emt 0:00:30]} Rc2 {[%emt 0:00:21]} 29. Rxc2 {[%emt 0:00:30]} bxc2+ {[%emt 0:00:09]} 30. Kxc2 {[%emt 0:00:00]} Rc8+ {[%emt 0:00:29]} 0-1

[Event "ESTCC 65 2019"]
[Site "Mali Losinj"]
[Date "2019.09.25"]
[Round "8.10"]
[White "Kierzek, Matthias"]
[Black "Ahlstrom, Per"]
[Result "1-0"]
[ECO "E73"]
[WhiteElo "2186"]
[BlackElo "1838"]
[Annotator "NA"]
[PlyCount "97"]
[EventDate "2019.09.18"]
[EventType "team-tourn"]
[EventCountry "CRO"]
[SourceTitle "playchess.com"]
[Source "ChessBase"]
[SourceQuality "1"]
[WhiteTeam "Germany"]
[BlackTeam "Sweden"]
[WhiteTeamCountry "GER"]
[BlackTeamCountry "SWE"]
[TimeControl "40/5400+30:1800+30"]

1. d4 {[%emt 0:00:30]} Nf6 {[%emt 0:00:30]} 2. c4 {[%emt 0:00:00]} g6 {[%emt 0:00:00]} 3. Nc3 {[%emt 0:00:00]} Bg7 {[%emt 0:00:00]} 4. e4 {[%emt 0:00:00]} d6 {[%emt 0:00:00]} 5. Be2 {[%emt 0:00:00]} c6 {[%emt 0:04:00]} 6. Bg5 {[%emt 0:00:30]} a6 {[%emt 0:02:30]} 7. Nf3 {[%emt 0:03:30]} b5 {[%emt 0:02:30]} 8. cxb5 {[%emt 0:09:30]} axb5 {[%emt 0:00:30]} 9. a3 {[%emt 0:00:30]} O-O {[%emt 0:11:30]} 10. O-O {[%emt 0:02:30]} h6 {[%emt 0:07:30]} 11. Bf4 {[%emt 0:01:30]} d5 {[%emt 0:28:30]} 12. e5 {[%emt 0:01:30]} Nh7 {[%emt 0:04:30]} 13. h4 {[%emt 0:10:30]} Bg4 {[%emt 0:03:30]} 14. Qd2 {[%emt 0:01:30]} Bxf3 {[%emt 0:00:30]} 15. Bxf3 {[%emt 0:00:30]} h5 {[%emt 0:00:30]} 16. Rfe1 {[%emt 0:02:30]} e6 {[%emt 0:00:30]} 17. g3 {[%emt 0:00:30]} Nd7 {[%emt 0:01:30]} 18. b3 {[%emt 0:06:30]} Qe7 {[%emt 0:00:30]} 19. a4 {[%emt 0:03:30]} b4 {[%emt 0:00:30]} 20. Na2 {[%emt 0:00:30]} c5 {[%emt 0:02:30]} 21. dxc5 {[%emt 0:04:30]} Nxc5 {[%emt 0:00:00]} 22. Rab1 {[%emt 0:01:30]} Na6 {[%emt 0:05:00]} 23. Be2 {[%emt 0:03:30]} Rfb8 {[%emt 0:00:30]} 24. Bxa6 {[%emt 0:01:30]} Rxa6 {[%emt 0:00:00]} 25. Rbc1 {[%emt 0:00:30]} Bf8 {[%emt 0:02:00]} 26. Rc2 {[%emt 0:00:30]} Qd7 {[%emt 0:03:30]} 27. Qd4 {[%emt 0:05:30]} Qa7 {[%emt 0:03:08]} 28. Qxa7 {[%emt 0:06:30]} Rxa7 {[%emt 0:00:05]} 29. Nc1 {[%emt 0:00:00]} Be7 {[%emt 0:01:29]} 30. Nd3 {[%emt 0:00:00]} g5 {[%emt 0:00:42]} 31. hxg5 {[%emt 0:00:30]} Bxg5 {[%emt 0:02:55]} 32. Rec1 {[%emt 0:02:30]} Raa8 {[%emt 0:08:45]} 33. Kg2 {[%emt 0:04:30]} Kg7 {[%emt 0:01:18]} 34. Bxg5 {[%emt 0:02:30]} Nxg5 {[%emt 0:00:11]} 35. Nf4 {[%emt 0:00:30]} h4 {[%emt 0:02:58]} 36. gxh4 {[%emt 0:00:00]} Ne4 {[%emt 0:00:21]} 37. Rc7 {[%emt 0:01:00]} Nc3 {[%emt 0:01:27]} 38. Nxe6+ {[%emt 0:00:30]} Kg6 {[%emt 0:01:06]} 39. Nf4+ {[%emt 0:01:30]} Kf5 {[%emt 0:00:21]} 40. Rxf7+ {[%emt 0:01:30]} Kxe5 {[%emt 0:00:07]} 41. Re1+ {[%emt 0:35:30]} Kd4 {[%emt 0:32:02]} 42. Re3 {[%emt 0:00:00]} Rg8+ {[%emt 0:00:00]} 43. Kf3 {[%emt 0:00:00]} Kc5 {[%emt 0:00:00]} 44. Nd3+ {[%emt 0:00:00]} Kd6 {[%emt 0:00:00]} 45. Rf6+ {[%emt 0:00:00]} Kd7 {[%emt 0:00:00]} 46. Nxb4 {[%emt 0:00:00]} Rgf8 {[%emt 0:00:00]} 47. Rxf8 {[%emt 0:00:00]} Rxf8+ {[%emt 0:00:00]} 48. Kg2 {[%emt 0:00:00]} Nd1 {[%emt 0:00:00]} 49. Rf3 {[%emt 0:00:00]} 1-0